bitfinex/quotes_BTCUSD_20241110
["timestamp","ask_amount","ask_price","bid_price","bid_amount"]
[1731209464733,0.13224102,77302.0,77291.0,0.01788369]
[1731209468035,0.023,77301.0,77291.0,0.01788369]
[1731209468890,0.69201683,77311.0,77293.0,0.1]
[1731209469066,0.69201683,77311.0,77306.0,0.16239364]
[1731209469420,0.19473438,77310.0,77308.0,0.02583]
[1731209469718,0.69201683,77311.0,77308.0,0.02583]
[1731209469918,0.19473438,77322.0,77308.0,0.02583]
[1731209470169,0.19473438,77314.0,77308.0,0.02583]
[1731209470369,0.19473438,77322.0,77309.0,0.02583]
[1731209471509,0.19473438,77322.0,77303.0,0.02583]
[1731209471736,0.19473438,77322.0,77309.0,0.19473438]
[1731209471953,0.19473438,77322.0,77303.0,0.02583]
[1731209472408,0.15524102,77321.0,77303.0,0.02583]
[1731209475770,0.84725785,77321.0,77303.0,0.02583]
[1731209476316,0.0488,77317.0,77303.0,0.19473438]
[1731209476520,0.15524102,77316.0,77303.0,0.19473438]
[1731209479985,0.15524102,77316.0,77302.0,0.01845335]
[1731209480797,0.023,77313.0,77302.0,0.001674]
[1731209481007,0.023,77311.0,77302.0,0.001674]
[1731209481206,0.023,77313.0,77302.0,0.001674]
[1731209481207,0.13224102,77310.0,77302.0,0.001674]
[1731209481796,0.69201683,77309.0,77302.0,0.001674]
[1731209481976,0.13224102,77308.0,77302.0,0.001674]
[1731209482176,0.19473438,77307.0,77302.0,0.001674]
[1731209482382,0.13224102,77306.0,77302.0,0.001674]
[1731209482987,0.82425785,77306.0,77302.0,0.001674]
[1731209483654,0.13224102,77306.0,77302.0,0.001674]
[1731209490776,0.69201683,77309.0,77302.0,0.16406764]
[1731209492875,0.69201683,77309.0,77303.0,0.19473438]
[1731209493079,0.69201683,77309.0,77308.0,0.16239364]
[1731209493695,0.005,77323.0,77308.0,0.16239364]
[1731209493928,0.01673981,77318.0,77308.0,0.16239364]
[1731209494132,0.13224102,77320.0,77308.0,0.16239364]
[1731209498234,0.14891619,77320.0,77308.0,0.16239364]
[1731209498582,0.14891619,77320.0,77308.0,0.1794678]
[1731209500572,0.14975319,77320.0,77308.0,0.1794678]
[1731209502165,0.14975319,77320.0,77308.0,0.01707416]
[1731209502329,0.14975319,77320.0,77303.0,0.19473438]
[1731209503239,0.19473438,77314.0,77302.0,0.001674]
[1731209503444,0.13224102,77313.0,77303.0,0.01644338]
[1731209503560,0.13224102,77313.0,77302.0,0.19640838]
[1731209503762,0.13224102,77313.0,77302.0,0.001674]
[1731209506357,0.13224102,77313.0,77302.0,0.0185669]
[1731209507378,0.13224102,77313.0,77303.0,0.03867184]
[1731209507580,0.13224102,77313.0,77304.0,0.03867181]
[1731209507785,0.13224102,77313.0,77305.0,0.03867181]
[1731209507983,0.13224102,77313.0,77306.0,0.03867181]
[1731209508209,0.13224102,77313.0,77307.0,0.03867181]
[1731209508421,0.13224102,77313.0,77308.0,0.03867181]
[1731209508628,0.13224102,77313.0,77309.0,0.03867181]
[1731209508841,0.13224102,77313.0,77302.0,0.0185669]
[1731209508842,0.13224102,77313.0,77310.0,0.03867181]
[1731209509042,0.13224102,77313.0,77311.0,0.03867181]
[1731209509251,0.13224102,77313.0,77302.0,0.0185669]
[1731209509252,0.13224102,77313.0,77312.0,0.03867181]
[1731209509482,0.13224102,77313.0,77302.0,0.0185669]
[1731209509689,0.13224102,77313.0,77303.0,0.19473438]
[1731209510124,0.13224102,77313.0,77302.0,0.0185669]
[1731209511578,0.69201683,77319.0,77302.0,0.0185669]
[1731209511789,0.13224102,77318.0,77304.0,0.19473438]
[1731209511992,0.13224102,77318.0,77304.0,0.24183438]
[1731209512312,0.13224102,77318.0,77304.0,0.0471]
[1731209512725,0.000837,77313.0,77304.0,0.0471]
[1731209518291,0.000837,77313.0,77304.0,0.04656954]
[1731209518501,0.12307802,77318.0,77303.0,0.0824]
[1731209521753,0.19473438,77314.0,77304.0,0.02419137]
[1731209521948,0.13224102,77313.0,77303.0,0.0824]
[1731209522802,0.06281217,77320.0,77303.0,0.0824]
[1731209523013,0.13224102,77319.0,77303.0,0.0824]
[1731209523457,0.13224102,77319.0,77304.0,0.19473438]
[1731209524496,0.000837,77318.0,77304.0,0.19473438]
[1731209524726,0.13307802,77318.0,77304.0,0.19473438]
[1731209526772,0.13307802,77318.0,77303.0,0.084074]
[1731209530475,0.13307802,77318.0,77312.0,0.03872116]
[1731209530920,0.13307802,77318.0,77313.0,0.03872116]
[1731209531522,0.13307802,77318.0,77315.0,0.03872116]
[1731209531734,0.13307802,77318.0,77314.0,0.03872116]
[1731209531912,0.13307802,77318.0,77315.0,0.03872116]
[1731209532157,0.21454102,77317.0,77313.0,0.03872116]
[1731209532340,0.21454102,77317.0,77311.0,0.03872116]
[1731209532955,0.21454102,77317.0,77303.0,0.001674]
[1731209533196,0.10424223,77311.0,77303.0,0.001674]
[1731209533487,0.0823,77309.0,77306.0,0.03873052]
[1731209533660,0.13224102,77308.0,77306.0,0.03873052]
[1731209534206,0.13224102,77308.0,77304.0,0.03873052]
[1731209535098,0.82425785,77308.0,77304.0,0.03873052]
[1731209535303,0.82425785,77308.0,77306.0,0.03873052]
[1731209535509,0.82425785,77308.0,77303.0,0.001674]
[1731209536697,0.84126201,77308.0,77303.0,0.001674]
[1731209536892,0.84126201,77308.0,77307.0,0.03872644]
[1731209537332,0.84126201,77308.0,77306.0,0.03872644]
[1731209537663,0.84126201,77308.0,77305.0,0.03872644]
[1731209538596,0.84126201,77308.0,77304.0,0.03872644]
[1731209538801,0.023,77307.0,77304.0,0.03872644]
[1731209539119,0.13224102,77306.0,77303.0,0.001674]
[1731209539783,0.46099073,77304.0,77303.0,0.001674]
[1731209540215,0.45899073,77304.0,77303.0,0.001674]
[1731209540635,0.49961737,77304.0,77303.0,0.001674]
[1731209540839,0.46099073,77304.0,77303.0,0.001674]
[1731209541043,0.49961737,77304.0,77303.0,0.001674]
[1731209541368,0.89961737,77304.0,77303.0,0.001674]
[1731209541979,0.85899073,77304.0,77303.0,0.001674]
[1731209542206,0.86099073,77304.0,77303.0,0.001674]
[1731209542684,0.91890415,77304.0,77303.0,0.001674]
[1731209542890,0.86099073,77304.0,77303.0,0.001674]
[1731209543115,0.90123065,77304.0,77303.0,0.001674]
[1731209543315,1.04373639,77304.0,77303.0,0.001674]
[1731209543878,1.55300756,77304.0,77303.0,0.001674]
[1731209544240,1.88626097,77304.0,77303.0,0.001674]
[1731209544415,1.85779383,77304.0,77303.0,0.001674]
[1731209544754,1.71545727,77304.0,77303.0,0.001674]
[1731209544909,1.75398433,77304.0,77303.0,0.001674]
[1731209545323,1.71545727,77304.0,77303.0,0.001674]
[1731209545518,1.59150877,77304.0,77303.0,0.001674]
[1731209545712,1.88620125,77304.0,77303.0,0.001674]
[1731209546038,1.88620125,77304.0,77284.0,0.000836]
[1731209546039,0.007,77292.0,77284.0,0.000836]
[1731209546242,1.14965956,77292.0,77284.0,0.000836]
[1731209547461,1.54965956,77292.0,77284.0,0.000836]
[1731209549133,1.54865956,77292.0,77284.0,0.000836]
[1731209551021,1.38520985,77292.0,77284.0,0.000836]
[1731209551213,1.22090985,77292.0,77284.0,0.000836]
[1731209551578,0.5494496,77292.0,77284.0,0.000836]
[1731209551821,0.1494496,77292.0,77284.0,0.000836]
[1731209552646,0.1724496,77292.0,77284.0,0.000836]
[1731209553958,0.14921011,77292.0,77284.0,0.000836]
[1731209555279,0.14921011,77292.0,77286.0,0.001]
[1731209555717,0.14921011,77292.0,77285.0,0.001]
[1731209555920,0.83787894,77292.0,77284.0,0.000836]
[1731209557877,0.86087894,77292.0,77284.0,0.000836]
[1731209560345,0.83787894,77292.0,77284.0,0.000836]
[1731209560697,0.83787894,77292.0,77286.0,0.0751]
[1731209560897,0.83955094,77292.0,77286.0,0.0751]
[1731209563190,0.83955094,77292.0,77289.0,0.001836]
[1731209563666,0.83955094,77292.0,77289.0,0.000836]
[1731209569165,0.91035094,77292.0,77289.0,0.000836]
[1731209569383,0.91135094,77292.0,77289.0,0.000836]
[1731209569607,0.92635094,77292.0,77289.0,0.000836]
[1731209569873,1.05354419,77292.0,77289.0,0.000836]
[1731209570334,1.40705094,77292.0,77289.0,0.000836]
[1731209570752,1.40605094,77292.0,77289.0,0.000836]
[1731209570960,1.40705094,77292.0,77289.0,0.000836]
[1731209578363,1.42055322,77292.0,77289.0,0.000836]
[1731209580128,1.41555322,77292.0,77289.0,0.000836]
[1731209580377,1.41455322,77292.0,77289.0,0.000836]
[1731209580837,1.41555322,77292.0,77289.0,0.000836]
[1731209581065,1.50256235,77292.0,77289.0,0.000836]
[1731209581283,1.46890317,77292.0,77289.0,0.000836]
[1731209581520,1.52689195,77292.0,77289.0,0.000836]
[1731209581745,0.72683283,77291.0,77289.0,0.000836]
[1731209581975,1.12567957,77291.0,77289.0,0.000836]
[1731209582417,1.60298412,77291.0,77289.0,0.000836]
[1731209582638,1.52567957,77291.0,77289.0,0.000836]
[1731209583278,1.60297661,77291.0,77289.0,0.000836]
[1731209583487,1.38297385,77291.0,77289.0,0.000836]
[1731209583915,1.42162506,77291.0,77289.0,0.000836]
[1731209584160,1.42062506,77291.0,77289.0,0.000836]
[1731209584370,1.38197385,77291.0,77289.0,0.000836]
[1731209585205,1.43994839,77291.0,77289.0,0.000836]
[1731209586912,1.52475071,77291.0,77289.0,0.000836]
[1731209587118,1.60204775,77291.0,77289.0,0.000836]
[1731209588405,0.016,77285.0,77284.0,0.000836]
[1731209588772,0.33369073,77285.0,77284.0,0.000836]
[1731209589005,0.45759073,77285.0,77284.0,0.000836]
[1731209589260,0.49628942,77285.0,77284.0,0.000836]
[1731209589695,0.65873913,77285.0,77284.0,0.000836]
[1731209589900,0.65873913,77285.0,77280.0,0.001464]
[1731209589901,0.039,77281.0,77280.0,0.001464]
[1731209590103,0.20993405,77281.0,77280.0,0.001464]
[1731209590299,0.17124102,77281.0,77280.0,0.001464]
[1731209590553,0.20992717,77281.0,77280.0,0.001464]
[1731209591068,0.17124102,77281.0,77280.0,0.001464]
[1731209591490,0.57124102,77281.0,77280.0,0.001464]
[1731209591918,0.59541502,77281.0,77280.0,0.001464]
[1731209592322,1.28057585,77281.0,77280.0,0.001464]
[1731209592952,1.26957585,77281.0,77280.0,0.001464]
[1731209593469,0.88636295,77281.0,77280.0,0.001464]
[1731209594646,0.88136295,77281.0,77280.0,0.001464]
[1731209594844,0.88636295,77281.0,77280.0,0.001464]
[1731209595057,0.88136295,77281.0,77280.0,0.001464]
[1731209595268,0.88636295,77281.0,77280.0,0.001464]
[1731209595464,0.88636295,77281.0,77280.0,0.02563359]
[1731209596351,0.88136295,77281.0,77280.0,0.02563359]
[1731209602798,0.85836295,77281.0,77280.0,0.10413359]
[1731209603017,0.68516083,77281.0,77280.0,0.10413359]
[1731209604804,0.68516083,77281.0,77280.0,0.10415229]
[1731209605419,0.68516083,77281.0,77280.0,0.10615229]
[1731209606209,0.68516083,77290.0,77280.0,0.10615229]
[1731209606412,0.3269754,77289.0,77281.0,0.02418829]
[1731209606615,0.3269754,77289.0,77282.0,0.02418829]
[1731209606831,0.3269754,77289.0,77283.0,0.02418829]
[1731209607073,0.3269754,77289.0,77280.0,0.081964]
[1731209607074,0.13224102,77289.0,77284.0,0.06938829]
[1731209607277,0.81740185,77289.0,77285.0,0.0785]
[1731209607939,0.81740185,77289.0,77286.0,0.02418054]
[1731209608445,0.81740185,77289.0,77287.0,0.02418054]
[1731209608650,0.81740185,77289.0,77287.0,0.02417569]
[1731209608871,0.81740185,77289.0,77288.0,0.02417569]
[1731209614153,0.81740185,77289.0,77288.0,0.02617569]
[1731209614377,0.84040185,77289.0,77288.0,0.02617569]
[1731209614788,0.84040185,77289.0,77288.0,0.02417569]
[1731209614957,0.001672,77291.0,77290.0,0.002]
[1731209615169,0.001672,77291.0,77290.0,0.07137569]
[1731209615368,0.001672,77291.0,77290.0,0.14987569]
[1731209617199,0.001672,77291.0,77290.0,0.14787569]
[1731209617972,0.001672,77291.0,77290.0,0.14987569]
[1731209618598,0.001672,77291.0,77290.0,0.10267569]
[1731209619637,0.001672,77291.0,77290.0,0.0785]
[1731209619830,0.001672,77291.0,77290.0,0.0715]
[1731209620042,0.001672,77291.0,77290.0,0.09563826]
[1731209620240,0.15691302,77291.0,77290.0,0.09563826]
[1731209620465,0.15691302,77291.0,77290.0,0.02413826]
[1731209621596,0.31944045,77291.0,77290.0,0.02413826]
[1731209621808,0.023,77290.0,77281.0,0.001672]
[1731209622010,0.023,77288.0,77282.0,0.02415061]
[1731209622223,0.023,77288.0,77281.0,0.001672]
[1731209622224,0.023,77286.0,77283.0,0.02415061]
[1731209622424,0.13224102,77285.0,77284.0,0.02415061]
[1731209623227,0.15524102,77285.0,77284.0,0.02415061]
[1731209625697,0.17207131,77285.0,77284.0,0.02415061]
[1731209629399,0.023,77284.0,77281.0,0.001672]
[1731209629584,0.15524102,77283.0,77282.0,0.02418027]
[1731209629983,0.023,77282.0,77281.0,0.001672]
[1731209630191,0.15524102,77282.0,77281.0,0.02585235]
[1731209632789,0.84040185,77282.0,77281.0,0.02585235]
[1731209636422,0.84040185,77282.0,77281.0,0.02585087]
[1731209639657,0.84026985,77282.0,77281.0,0.02585087]
[1731209640708,0.84026985,77282.0,77281.0,0.001672]
[1731209641116,0.84026985,77282.0,77281.0,0.02584715]
[1731209647562,0.84026985,77282.0,77281.0,0.001672]
[1731209648122,0.83926985,77282.0,77281.0,0.001672]
[1731209649954,0.94361425,77282.0,77281.0,0.001672]
[1731209651005,0.94361425,77282.0,77281.0,0.06462687]
[1731209652507,1.04795865,77282.0,77281.0,0.06462687]
[1731209652736,1.00351425,77282.0,77281.0,0.02589857]
[1731209652939,1.00851425,77282.0,77281.0,0.02589857]
[1731209653110,1.00851425,77282.0,77281.0,0.001672]
[1731209653315,1.40851425,77282.0,77281.0,0.001672]
[1731209654778,1.40935025,77282.0,77281.0,0.001672]
[1731209658742,1.59669465,77282.0,77281.0,0.001672]
[1731209661050,1.60038365,77282.0,77281.0,0.001672]
[1731209661890,1.60038365,77282.0,77280.0,0.001464]
[1731209661891,0.72148883,77281.0,77280.0,0.001464]
[1731209662101,0.85372985,77281.0,77280.0,0.001464]
[1731209662291,1.25372985,77281.0,77280.0,0.001464]
[1731209663320,1.38532985,77281.0,77280.0,0.001464]
[1731209666531,1.59401865,77281.0,77280.0,0.001464]
[1731209669273,1.48967425,77281.0,77280.0,0.001464]
[1731209671644,1.59401865,77281.0,77280.0,0.001464]
[1731209675337,0.1043444,77270.0,77265.0,0.19403438]
[1731209675539,0.83872985,77269.0,77265.0,0.19403438]
[1731209675945,0.83872985,77269.0,77263.0,0.0453]
[1731209677786,0.83872985,77269.0,77263.0,0.046136]
[1731209678654,0.023,77267.0,77263.0,0.046136]
[1731209678794,0.13224102,77266.0,77263.0,0.046136]
[1731209678995,0.023,77265.0,77263.0,0.046136]
[1731209679201,0.13224102,77264.0,77263.0,0.046136]
[1731209679437,0.15524102,77264.0,77263.0,0.046136]
[1731209679640,0.15424102,77264.0,77263.0,0.046136]
[1731209680298,0.15424102,77264.0,77263.0,0.000836]
[1731209683347,0.83772985,77264.0,77263.0,0.000836]
[1731209693916,0.94207425,77264.0,77263.0,0.000836]
[1731209694537,0.025853,77263.0,77259.0,0.03877874]
[1731209694743,0.15809402,77263.0,77259.0,0.03877874]
[1731209695183,0.84158285,77263.0,77259.0,0.03877874]
[1731209696034,0.84158285,77263.0,77260.0,0.03877874]
[1731209696241,0.84158285,77263.0,77261.0,0.03877874]
[1731209697114,0.84158285,77263.0,77258.0,0.0461]
[1731209697746,0.84158285,77263.0,77262.0,0.03961332]
[1731209698177,0.84158285,77263.0,77262.0,0.000836]
[1731209700040,0.83872985,77263.0,77262.0,0.000836]
[1731209701604,0.68348883,77263.0,77262.0,0.124136]
[1731209701991,0.68348883,77263.0,77262.0,0.122136]
[1731209702496,0.68348883,77263.0,77262.0,0.075836]
[1731209702702,0.92007425,77263.0,77262.0,0.000836]
[1731209702908,0.94307425,77263.0,77262.0,0.000836]
[1731209703129,0.94307425,77263.0,77262.0,0.03961392]
[1731209703335,0.94307425,77263.0,77262.0,0.000836]
[1731209703757,0.83872985,77263.0,77262.0,0.000836]
[1731209703952,0.83872985,77263.0,77262.0,0.03961392]
[1731209704505,0.83872985,77263.0,77262.0,0.03961393]
[1731209704506,0.94307425,77263.0,77262.0,0.03961393]
[1731209704952,0.94302609,77263.0,77262.0,0.03961393]
[1731209705166,0.94302609,77263.0,77262.0,0.000836]
[1731209707277,0.94302609,77263.0,77254.0,0.072983]
[1731209707481,0.15524102,77262.0,77254.0,0.072983]
[1731209708531,0.023,77260.0,77254.0,0.072983]
[1731209708689,0.13224102,77259.0,77254.0,0.072983]
[1731209709259,0.19473438,77256.0,77254.0,0.072983]
[1731209709465,0.13224102,77259.0,77252.0,0.01686412]
[1731209709665,0.13224102,77259.0,77250.0,0.00029]
[1731209710288,0.13224102,77259.0,77250.0,0.07529]
[1731209711933,0.13224102,77259.0,77250.0,0.09208805]
[1731209712124,0.19473438,77254.0,77250.0,0.01708805]
[1731209712324,0.1273444,77251.0,77250.0,0.00029]
[1731209712498,0.25958542,77251.0,77250.0,0.00029]
[1731209713105,0.15524102,77251.0,77250.0,0.00029]
[1731209713342,0.25958542,77251.0,77250.0,0.00029]
[1731209713955,0.15524102,77251.0,77250.0,0.00029]
[1731209714543,0.15524102,77251.0,77250.0,0.001962]
[1731209715861,0.83868169,77251.0,77250.0,0.001962]
[1731209718165,0.83868169,77251.0,77250.0,0.06697343]
[1731209718453,0.83868169,77251.0,77250.0,0.06497343]
[1731209718661,0.8559272,77251.0,77250.0,0.06497343]
[1731209719941,0.8559272,77251.0,77250.0,0.001962]
[1731209720142,0.8559272,77251.0,77250.0,0.04071571]
[1731209720351,0.8559272,77251.0,77250.0,0.08913185]
[1731209722204,0.8559272,77251.0,77250.0,0.08908974]
[1731209723942,0.8559272,77251.0,77250.0,0.05037794]
[1731209724302,1.0429716,77251.0,77250.0,0.05037794]
[1731209724504,0.9844272,77251.0,77250.0,0.05037794]
[1731209726499,1.3844272,77251.0,77250.0,0.05037794]
[1731209726651,1.3852632,77251.0,77250.0,0.05037794]
[1731209726863,1.3852632,77251.0,77250.0,0.05035972]
[1731209728187,1.3852632,77251.0,77250.0,0.02613865]
[1731209729042,1.3852632,77251.0,77250.0,0.001962]
[1731209730784,1.4896076,77251.0,77250.0,0.001962]
[1731209730913,1.5046076,77251.0,77250.0,0.001962]
[1731209732537,1.4002632,77251.0,77250.0,0.001962]
[1731209732939,1.5046076,77251.0,77250.0,0.001962]
[1731209733804,1.3661076,77251.0,77250.0,0.001962]
[1731209734368,0.9661076,77251.0,77250.0,0.001962]
[1731209735515,1.070452,77251.0,77250.0,0.001962]
[1731209735719,0.9661076,77251.0,77250.0,0.001962]
[1731209736062,1.070452,77251.0,77250.0,0.001962]
[1731209736480,1.470452,77251.0,77250.0,0.001962]
[1731209737257,1.475452,77251.0,77250.0,0.001962]
[1731209737462,1.525952,77251.0,77250.0,0.001962]
[1731209739748,1.606552,77251.0,77250.0,0.001962]
[1731209746916,1.5022076,77251.0,77250.0,0.001962]
[1731209747362,1.3431076,77251.0,77250.0,0.001962]
[1731209747571,1.3431076,77251.0,77250.0,0.0261628]
[1731209748633,1.3431076,77251.0,77250.0,0.02616318]
[1731209748869,1.3661076,77251.0,77250.0,0.02616318]
[1731209753044,1.2617632,77251.0,77250.0,0.02616318]
[1731209753292,1.2567632,77251.0,77250.0,0.02616318]
[1731209753518,0.8567632,77251.0,77250.0,0.02616318]
[1731209753720,0.8617632,77251.0,77250.0,0.02616318]
[1731209753904,0.8567632,77251.0,77250.0,0.02616318]
[1731209754259,0.8617632,77251.0,77250.0,0.06490549]
[1731209754437,0.9661076,77251.0,77250.0,0.06490549]
[1731209754640,0.9661076,77251.0,77250.0,0.02616318]
[1731209755071,0.9611076,77251.0,77250.0,0.02616318]
[1731209755274,0.9661076,77251.0,77250.0,0.02616318]
[1731209755459,1.3661076,77251.0,77250.0,0.02616318]
[1731209756125,1.3661076,77251.0,77250.0,0.06491141]
[1731209756328,1.3661076,77251.0,77250.0,0.02616318]
[1731209756684,1.3661076,77251.0,77250.0,0.06491372]
[1731209756891,1.3661076,77251.0,77250.0,0.02616318]
[1731209757065,1.3661076,77251.0,77250.0,0.06491368]
[1731209757285,1.3661076,77251.0,77250.0,0.02616318]
[1731209758656,1.480452,77251.0,77250.0,0.02616318]
[1731209760835,1.3761076,77251.0,77250.0,0.02616318]
[1731209761457,1.3761076,77251.0,77250.0,0.001962]
[1731209761663,1.3761076,77251.0,77250.0,0.02618612]
[1731209762666,1.2617632,77251.0,77250.0,0.02618612]
[1731209762865,1.3661076,77251.0,77250.0,0.02618612]
[1731209763106,1.2567632,77251.0,77250.0,0.02618612]
[1731209763280,1.3611076,77251.0,77250.0,0.02618612]
[1731209763494,0.9611076,77251.0,77250.0,0.02618612]
[1731209763864,0.8337632,77251.0,77250.0,0.06494424]
[1731209764069,0.8337632,77251.0,77250.0,0.19244424]
[1731209764070,0.68427667,77251.0,77250.0,0.19244424]
[1731209764367,0.000836,77251.0,77250.0,0.19642109]
[1731209765469,0.000836,77251.0,77250.0,0.19900976]
[1731209765695,0.000836,77251.0,77250.0,0.30076549]
[1731209766732,0.000836,77251.0,77250.0,0.19642109]
[1731209767687,0.000836,77251.0,77250.0,0.19630179]
[1731209768605,0.000836,77251.0,77250.0,0.19430179]
[1731209768835,0.000836,77251.0,77250.0,0.19630179]
[1731209770020,0.000836,77251.0,77250.0,0.19430179]
[1731209770638,0.000836,77251.0,77250.0,0.19630179]
[1731209771042,0.000836,77251.0,77250.0,0.19626741]
[1731209772025,0.000836,77251.0,77250.0,0.29626741]
[1731209772836,0.000836,77251.0,77250.0,0.54785283]
[1731209773503,0.000836,77263.0,77262.0,0.1275]
[1731209773635,0.000836,77263.0,77262.0,0.39467296]
[1731209773851,0.000836,77263.0,77262.0,0.39920431]
[1731209775274,0.000836,77263.0,77262.0,0.43780985]
[1731209775470,0.000836,77263.0,77262.0,0.39920431]
[1731209775635,0.000836,77263.0,77262.0,0.43780985]
[1731209775840,0.000836,77263.0,77262.0,0.39920431]
[1731209776252,0.000836,77263.0,77262.0,0.43780985]
[1731209776680,0.000836,77263.0,77262.0,0.51854871]
[1731209776883,0.68427667,77282.0,77276.0,0.002]
[1731209777090,0.000836,77282.0,77280.0,0.002]
[1731209777317,0.000836,77282.0,77280.0,0.0672993]
[1731209777516,0.000836,77282.0,77280.0,0.21450797]
[1731209777806,0.000836,77282.0,77280.0,0.19295176]
[1731209778008,0.000836,77282.0,77280.0,0.21705666]
[1731209778221,0.000836,77282.0,77280.0,0.21705537]
[1731209778376,0.000836,77282.0,77280.0,0.15179635]
[1731209778574,0.000836,77282.0,77280.0,0.09036172]
[1731209779207,0.000836,77282.0,77280.0,0.2915928]
[1731209780460,0.000836,77282.0,77280.0,0.30801416]
[1731209780789,0.000836,77282.0,77280.0,0.26944994]
[1731209783100,0.000836,77282.0,77280.0,0.26934608]
[1731209785168,0.000836,77282.0,77280.0,0.22404608]
[1731209786345,0.000836,77282.0,77280.0,0.16148308]
[1731209786549,0.000836,77282.0,77280.0,0.1240034]
[1731209786754,0.000836,77282.0,77280.0,0.2240034]
[1731209790510,0.000836,77282.0,77280.0,0.08543803]
[1731209792167,0.000836,77282.0,77280.0,0.06901667]
[1731209792325,0.000836,77282.0,77280.0,0.06701667]
[1731209793144,0.000836,77282.0,77280.0,0.06710417]
[1731209793505,0.000836,77282.0,77280.0,0.00449635]
[1731209793719,0.000836,77282.0,77280.0,0.06713818]
[1731209794265,1.08175245,77281.0,77280.0,0.06713818]
[1731209794479,1.08175245,77281.0,77280.0,0.06264183]
[1731209795306,1.08175245,77281.0,77260.0,0.19473438]
[1731209795307,1.85645817,77262.0,77260.0,0.19473438]
[1731209795864,1.85645817,77262.0,77259.0,0.0453]
[1731209796232,1.85645817,77262.0,77259.0,0.01701277]
[1731209796233,0.19473438,77261.0,77259.0,0.01701277]
[1731209796496,1.85645817,77262.0,77252.0,0.0453]
[1731209797028,0.19473438,77261.0,77252.0,0.0453]
[1731209797240,0.3269754,77260.0,77250.0,0.001962]
[1731209797440,0.13224102,77260.0,77250.0,0.001962]
[1731209798911,0.13224102,77260.0,77251.0,0.00258866]
[1731209799347,1.85645817,77262.0,77251.0,0.00508783]
[1731209800217,1.85645817,77262.0,77257.0,0.16758105]
[1731209800449,1.85645817,77262.0,77261.0,0.005]
[1731209800655,1.81605648,77262.0,77261.0,0.005]
[1731209800865,1.81605648,77262.0,77261.0,0.01006584]
[1731209801070,1.81605648,77262.0,77261.0,0.005]
[1731209801728,1.81605648,77262.0,77258.0,0.2255]
[1731209802394,1.81605648,77262.0,77257.0,0.29482207]
[1731209802395,0.002,77270.0,77257.0,0.005]
[1731209802660,0.19473438,77266.0,77256.0,0.005]
[1731209802904,0.19473438,77266.0,77251.0,0.005]
[1731209802905,0.002,77258.0,77251.0,0.005]
[1731209803545,0.002,77262.0,77251.0,0.005]
[1731209803963,0.002,77263.0,77251.0,0.005]
[1731209804157,0.3289754,77266.0,77251.0,0.02179374]
[1731209804387,0.3289754,77266.0,77251.0,0.005]
[1731209805244,0.3269754,77266.0,77251.0,0.185]
[1731209805495,0.3269754,77266.0,77252.0,0.13861457]
[1731209805694,0.3269754,77266.0,77253.0,0.03861457]
[1731209805927,0.3269754,77266.0,77254.0,0.03861457]
[1731209806068,0.3269754,77266.0,77255.0,0.03861457]
[1731209806281,0.3289754,77266.0,77256.0,0.04372888]
[1731209806495,0.3289754,77266.0,77257.0,0.03861457]
[1731209806702,0.3289754,77266.0,77258.0,0.03861457]
[1731209806906,0.005,77268.0,77259.0,0.04120292]
[1731209807114,0.002,77278.0,77266.0,0.005]
[1731209807326,0.19473438,77274.0,77266.0,0.005]
[1731209807520,0.01,77280.0,77267.0,0.06785252]
[1731209807723,0.19473438,77275.0,77268.0,0.06274661]
[1731209807943,0.002,77278.0,77269.0,0.06274661]
[1731209808145,0.002,77278.0,77270.0,0.06274661]
[1731209808426,0.002,77278.0,77271.0,0.06274661]
[1731209808646,0.002,77278.0,77272.0,0.06274661]
[1731209808873,0.002,77278.0,77273.0,0.06274661]
[1731209809103,0.002,77278.0,77274.0,0.06274661]
[1731209809311,0.002,77278.0,77275.0,0.06274661]
[1731209809525,0.002,77278.0,77274.0,0.00509913]
[1731209809526,0.002,77278.0,77276.0,0.06274661]
[1731209809747,0.01,77280.0,77276.0,0.06274661]
[1731209809955,0.01,77280.0,77277.0,0.06274661]
[1731209810172,0.01,77280.0,77278.0,0.06274661]
[1731209810357,0.005,77279.0,77277.0,0.00509822]
[1731209810617,0.005,77280.0,77278.0,0.06275535]
[1731209810829,0.005,77279.0,77266.0,0.0222385]
[1731209811009,0.00431968,77278.0,77267.0,0.06275675]
[1731209811255,0.00431968,77278.0,77268.0,0.06275675]
[1731209811473,0.00431968,77278.0,77269.0,0.06275675]
[1731209811723,0.00431968,77278.0,77270.0,0.06275675]
[1731209811954,0.00431968,77278.0,77271.0,0.06275675]
[1731209812204,0.00431968,77278.0,77266.0,0.02209866]
[1731209812205,0.002,77273.0,77272.0,0.06275675]
[1731209812416,0.00431968,77278.0,77272.0,0.06275675]
[1731209812417,0.00631968,77278.0,77272.0,0.06275675]
[1731209812622,0.00631968,77278.0,77273.0,0.06275675]
[1731209812804,0.00631968,77278.0,77274.0,0.06275675]
[1731209813041,0.00631968,77278.0,77275.0,0.06275675]
[1731209813275,0.00631968,77278.0,77266.0,0.005]
[1731209813276,0.002,77278.0,77276.0,0.06275675]
[1731209813499,0.00631968,77278.0,77277.0,0.06275675]
[1731209813922,0.00631968,77278.0,77266.0,0.005]
[1731209814148,0.00631968,77278.0,77267.0,0.06277721]
[1731209814289,0.00631968,77278.0,77268.0,0.06278616]
[1731209814520,0.005,77280.0,77269.0,0.06278616]
[1731209814700,0.00631968,77278.0,77270.0,0.06278616]
[1731209814906,0.002,77273.0,77271.0,0.06278616]
[1731209815170,0.002,77273.0,77272.0,0.06278616]
[1731209816237,0.002,77273.0,77272.0,0.06279236]
[1731209816854,0.002,77273.0,77272.0,0.06280093]
[1731209817447,0.002,77277.0,77272.0,0.06280093]
[1731209817672,0.002,77277.0,77273.0,0.02415727]
[1731209817874,0.002,77277.0,77274.0,0.06280891]
[1731209818123,0.002,77277.0,77275.0,0.06280891]
[1731209818333,0.007,77277.0,77276.0,0.06280891]
[1731209818546,0.006,77277.0,77276.0,0.06280891]
[1731209818756,0.001,77272.0,77268.0,1.5]
[1731209818961,0.001,77272.0,77269.0,0.06281876]
[1731209819079,0.001,77272.0,77270.0,0.06281876]
[1731209819318,0.001,77272.0,77271.0,0.06281876]
[1731209820572,0.001,77272.0,77271.0,0.06789354]
[1731209821102,0.0765,77272.0,77271.0,0.06789354]
[1731209821564,0.0815,77272.0,77271.0,0.06789354]